bitfinex/quotes_SOLUSD_20250918
["timestamp","ask_amount","ask_price","bid_price","bid_amount"]
[1758228945000,20.26054183,248.53,248.52,0.03]
[1758228947988,4.98798225,248.53,248.52,0.03]
[1758228950299,6.66494782,248.53,248.52,0.03]
[1758228950891,4.98798225,248.53,248.52,0.03]
[1758228951369,6.66494782,248.53,248.52,0.03]
[1758228952376,4.98798225,248.53,248.52,0.03]
[1758228952576,6.66494782,248.53,248.52,0.03]
[1758228953801,21.20711071,248.53,248.52,0.03]
[1758228956894,18.58357626,248.53,248.52,0.03]
[1758228959010,17.90357626,248.53,248.52,0.03]
[1758228959191,18.57357626,248.53,248.52,0.03]
[1758228960290,18.63357626,248.53,248.52,0.03]
[1758228962509,4.08365911,248.53,248.52,0.03]
[1758228963398,4.75365911,248.53,248.52,0.03]
[1758228966297,39.87991715,248.52,248.51,1e-08]
[1758228966482,42.5034516,248.52,248.51,1e-08]
[1758228966688,74.3134516,248.52,248.51,1e-08]
[1758228967191,43.1734516,248.52,248.51,1e-08]
[1758228967389,74.3134516,248.52,248.51,1e-08]
[1758228967606,78.33727262,248.52,248.51,1e-08]
[1758228967808,47.19727262,248.52,248.51,1e-08]
[1758228967991,78.33727262,248.52,248.51,1e-08]
[1758228974407,77.66727262,248.52,248.51,1e-08]
[1758228974814,78.33727262,248.52,248.51,1e-08]
[1758228977724,75.71373817,248.52,248.51,1e-08]
[1758228977923,78.33727262,248.52,248.51,1e-08]
[1758228980304,0.28432314,248.51,248.48,0.03]
[1758228980509,47.29912846,248.5,248.48,0.03]
[1758228981008,44.67559401,248.5,248.48,0.03]
[1758228981200,47.29912846,248.5,248.48,0.03]
[1758228981405,44.67559401,248.5,248.48,0.03]
[1758228981631,47.5834516,248.5,248.48,0.03]
[1758228981806,44.95991715,248.5,248.48,0.03]
[1758228982012,51.60759646,248.5,248.48,0.03]
[1758228988334,4.30862995,248.49,248.48,0.03]
[1758228988709,4.02430681,248.49,248.48,0.69]
[1758228989826,4.02413727,248.51,248.48,0.69]
[1758228990425,14.08337357,248.52,248.48,0.69]
[1758228993038,14.78337357,248.52,248.48,0.03]
[1758228993248,2.62353445,248.51,248.48,0.03]
[1758228994053,0.28432314,248.51,248.48,0.03]
[1758228994350,4.02414486,248.5,248.48,0.03]
[1758228995344,4.02414486,248.5,248.48,0.69]
[1758228996731,14.08394027,248.51,248.48,0.69]
[1758228997619,14.08394027,248.51,248.48,0.03]
[1758228999452,14.78394027,248.51,248.48,0.03]
[1758228999649,14.08394027,248.51,248.48,0.03]
[1758228999941,16.5034516,248.49,248.48,0.03]
[1758229000345,17.2034516,248.49,248.48,0.03]
[1758229002160,21.22775841,248.49,248.48,0.03]
[1758229005243,0.28432314,248.48,248.47,0.03]
[1758229005432,0.98432314,248.48,248.47,0.03]
[1758229007355,7.63232636,248.48,248.47,0.03]
[1758229013757,6.68829519,248.48,248.47,0.03]
[1758229015151,5.98829519,248.48,248.47,0.03]
[1758229015358,6.74829519,248.48,248.47,0.03]
[1758229019853,5.06879191,248.48,248.47,0.03]
[1758229020058,6.74829519,248.48,248.47,0.03]
[1758229025036,5.06879191,248.48,248.47,0.03]
[1758229025565,6.74829519,248.48,248.47,0.03]
[1758229028550,0.28432314,248.46,248.4,0.49]
[1758229028849,1.67950328,248.42,248.39,0.03]
[1758229029049,4.02576489,248.4,248.39,0.03]
[1758229030058,4.72576489,248.4,248.39,0.03]
[1758229030367,4.02576489,248.4,248.39,0.03]
[1758229031753,4.72576489,248.4,248.39,0.03]
[1758229034384,4.02576489,248.4,248.39,0.03]
[1758229035051,4.72576489,248.4,248.39,0.03]
[1758229039679,4.02576489,248.4,248.39,0.59]
[1758229040192,4.02576489,248.4,248.39,0.03]
[1758229040863,0.28432314,248.41,248.39,0.03]
[1758229041258,4.02544078,248.42,248.39,0.03]
[1758229041459,4.02544078,248.42,248.4,0.56]
[1758229041872,4.02544078,248.42,248.39,0.03]
[1758229042061,4.02544078,248.42,248.4,0.56]
[1758229042379,4.02526843,248.44,248.41,0.56]
[1758229042960,14.08752823,248.45,248.41,0.56]
[1758229043155,14.08752823,248.45,248.4,0.56]
[1758229043374,14.78752823,248.45,248.4,0.56]
[1758229044587,10.76257352,248.45,248.4,0.56]
[1758229045172,0.7,248.44,248.4,0.56]
[1758229045692,4.02527875,248.43,248.4,0.56]
[1758229047676,10.06257352,248.45,248.41,0.56]
[1758229047877,10.76257352,248.45,248.4,2.2311167]
[1758229048086,10.06257352,248.45,248.4,2.2311167]
[1758229048266,0.7,248.44,248.4,2.2311167]
[1758229048468,0.7,248.44,248.4,1.6711167]
[1758229048791,4.02527875,248.43,248.4,1.6711167]
[1758229050280,4.72527875,248.43,248.4,1.6711167]
[1758229050468,0.7,248.42,248.39,0.03]
[1758229050669,4.02560283,248.41,248.39,0.03]
[1758229050886,4.72560283,248.41,248.39,0.03]
[1758229051477,4.02511672,248.44,248.4,0.56]
[1758229051884,0.06,248.43,248.4,0.56]
[1758229052078,0.06,248.43,248.39,1.7311167]
[1758229052293,0.06,248.43,248.39,2.2911167]
[1758229053174,4.02544078,248.42,248.39,1.7311167]
[1758229053884,4.02544078,248.42,248.39,2.2911167]
[1758229054191,4.02544078,248.42,248.39,1.7311167]
[1758229054679,4.02544078,248.42,248.39,2.2911167]
[1758229056393,4.02544078,248.42,248.39,1.7311167]
[1758229057890,4.72544078,248.42,248.39,1.7311167]
[1758229058691,4.02544078,248.42,248.39,1.7311167]
[1758229059877,0.7,248.41,248.39,1.7311167]
[1758229060067,0.7,248.4,248.39,0.03]
[1758229061471,6.68959131,248.4,248.39,0.03]
[1758229063595,20.28518532,248.4,248.39,0.03]
[1758229063778,18.60568204,248.4,248.39,0.03]
[1758229064695,4.02576489,248.4,248.39,0.59]
[1758229065089,4.02559631,248.42,248.39,0.59]
[1758229065400,0.06,248.43,248.4,0.56]
[1758229065784,0.06,248.43,248.41,0.56]
[1758229066384,4.08531042,248.43,248.39,10.09252973]
[1758229066584,4.08531042,248.43,248.39,0.03]
[1758229066585,0.7,248.42,248.39,0.03]
[1758229066983,4.08531042,248.43,248.39,0.03]
[1758229067189,4.78531042,248.43,248.39,0.03]
[1758229067389,4.08531042,248.43,248.4,0.56]
[1758229067903,0.06,248.43,248.41,0.56]
[1758229069094,0.06,248.43,248.41,1.61085718]
[1758229069296,0.7,248.42,248.39,0.03]
[1758229070082,4.72560217,248.42,248.39,0.03]
[1758229070285,4.02560217,248.42,248.39,0.03]
[1758229070902,4.72560217,248.42,248.39,0.03]
[1758229071683,4.02560217,248.42,248.39,0.03]
[1758229071899,4.72560217,248.42,248.39,0.03]
[1758229075507,4.02560217,248.42,248.39,0.03]
[1758229076187,4.72560217,248.42,248.39,0.03]
[1758229077991,4.02560217,248.42,248.39,0.03]
[1758229078191,4.72561285,248.41,248.39,0.03]
[1758229078486,4.7854384,248.43,248.39,0.03]
[1758229078691,0.7,248.42,248.39,0.03]
[1758229079815,4.72554075,248.42,248.39,0.03]
[1758229080188,4.02554075,248.42,248.39,0.03]
[1758229080508,0.7,248.41,248.39,0.03]
[1758229083214,4.72560873,248.41,248.39,0.03]
[1758229084006,4.72560873,248.41,248.39,31.05]
[1758229084631,0.7,248.4,248.39,0.03]
[1758229084917,0.7,248.4,248.39,31.05]
[1758229086515,4.08563806,248.41,248.39,31.05]
[1758229086708,4.78563806,248.41,248.39,31.05]
[1758229086912,0.06,248.41,248.39,31.61]
[1758229087299,0.06,248.41,248.39,31.05]
[1758229087512,0.76,248.41,248.39,31.05]
[1758229087827,0.06,248.41,248.39,31.05]
[1758229088031,0.06,248.41,248.39,31.61]
[1758229088330,0.06,248.41,248.4,0.56]
[1758229089015,0.06,248.41,248.4,4.58576489]
[1758229090016,0.06,248.41,248.4,6.1965572]
[1758229092718,0.06,248.41,248.4,6.59913368]
[1758229093709,0.06,248.43,248.42,26.0]
[1758229093908,0.06,248.44,248.42,35.42798485]
[1758229094129,0.06,248.44,248.43,0.56]
[1758229094311,0.06,248.44,248.43,2.17033837]
[1758229095222,0.06,248.44,248.43,6.19561712]
[1758229096810,0.06,248.44,248.43,85.89561712]
[1758229097927,0.06,248.44,248.43,85.33561712]
[1758229098227,0.06,248.44,248.43,116.33561712]
[1758229098612,0.06,248.44,248.43,85.33561712]
[1758229098812,0.06,248.44,248.43,116.33561712]
[1758229101924,0.06,248.44,248.43,37.19561712]
[1758229103030,0.06,248.44,248.43,6.19561712]
[1758229103334,0.06,248.44,248.43,37.22561712]
[1758229103547,0.06,248.44,248.43,36.66561712]
[1758229103938,0.06,248.46,248.45,26.0]
[1758229104232,0.06,248.46,248.45,31.40249547]
[1758229104414,0.06,248.46,248.45,31.96249547]
[1758229104618,0.06,248.46,248.45,33.57257456]
[1758229105737,0.06,248.46,248.45,37.59752927]
[1758229106243,0.06,248.47,248.46,13.59559401]
[1758229106442,0.06,248.47,248.46,14.15559401]
[1758229106739,0.06,248.47,248.46,97.88038673]
[1758229106942,0.06,248.47,248.46,99.49033621]
[1758229108039,0.06,248.48,248.46,99.49033621]
[1758229108239,0.06,248.48,248.47,31.40246307]
[1758229108939,0.06,248.48,248.47,33.01241256]
[1758229109140,0.06,248.48,248.47,37.0370433]
[1758229111740,0.06,248.48,248.47,116.7370433]
[1758229112034,0.06,248.48,248.47,116.33458023]
[1758229113340,0.02,248.55,248.5,26.0]
[1758229113544,0.02,248.55,248.54,26.0]
[1758229113747,0.02,248.55,248.54,56.98]
[1758229115345,0.68,248.55,248.54,56.98]
[1758229115742,0.68,248.55,248.54,26.0]
[1758229115942,0.68,248.55,248.54,30.98]
[1758229116150,0.68,248.55,248.54,56.98]
[1758229126855,0.68,248.55,248.54,26.0]
[1758229127234,0.68,248.55,248.54,56.98]
[1758229129159,4.70333534,248.55,248.54,26.0]
[1758229129344,4.70333534,248.55,248.54,56.98]
[1758229130758,4.70333534,248.55,248.47,10.09157685]
[1758229130759,4.70333534,248.55,248.47,0.03]
[1758229130961,4.70333534,248.55,248.48,30.98]
[1758229131162,0.68,248.55,248.49,0.72]
[1758229131338,4.70336502,248.55,248.5,56.98]
[1758229131541,4.04336502,248.55,248.5,57.7]
[1758229131742,0.66,248.54,248.5,57.7]
[1758229133656,4.04336502,248.55,248.51,0.72]
[1758229133859,0.68,248.55,248.52,30.98]
[1758229134458,0.02,248.55,248.52,31.68]
[1758229135639,0.72,248.55,248.52,31.68]
[1758229137664,0.72,248.55,248.52,30.98]
[1758229139069,0.72,248.55,248.52,31.01]
[1758229139262,4.7433421,248.55,248.52,31.01]
[1758229139574,0.7,248.54,248.52,31.01]
[1758229139868,0.7,248.53,248.52,31.01]
[1758229140073,0.7,248.53,248.52,0.03]
[1758229141463,4.72365911,248.53,248.52,0.03]
[1758229147545,10.07833836,248.55,248.52,0.03]
[1758229147546,4.02350486,248.54,248.52,0.03]
[1758229148676,0.7,248.54,248.52,0.03]
[1758229152774,4.02365911,248.53,248.52,0.03]
[1758229152973,4.04342344,248.55,248.52,0.03]
[1758229153158,4.04342344,248.55,248.52,0.73]
[1758229153358,4.74342344,248.55,248.52,0.73]
[1758229153664,4.74342344,248.55,248.52,0.03]
[1758229154473,4.02365911,248.53,248.52,0.03]
[1758229160961,4.72365911,248.53,248.52,0.03]
[1758229166072,0.7,248.53,248.52,0.03]
[1758229166273,4.72365911,248.53,248.52,0.03]
[1758229170390,4.02365911,248.53,248.52,0.03]
[1758229170687,4.74365911,248.53,248.52,0.03]
[1758229180304,18.62357626,248.53,248.52,0.03]
[1758229180984,20.30119323,248.53,248.52,0.03]
[1758229181189,18.62357626,248.53,248.52,0.03]
[1758229184475,20.30119323,248.53,248.52,0.03]
[1758229185175,0.28432314,248.52,248.43,0.03]
[1758229185378,0.28432314,248.43,248.42,0.03]
[1758229185591,16.27753412,248.43,248.42,0.03]
[1758229187305,20.30281287,248.43,248.42,0.03]
[1758229187690,18.6251959,248.43,248.42,0.03]
[1758229187993,20.30281287,248.43,248.42,0.03]
[1758229188305,18.6251959,248.43,248.42,0.03]
[1758229188604,20.30281287,248.43,248.42,0.03]
[1758229190404,18.6251959,248.43,248.42,0.03]
[1758229190596,20.36281287,248.43,248.42,0.03]
[1758229192303,18.6851959,248.43,248.42,0.03]
[1758229192505,20.36281287,248.43,248.42,0.03]
[1758229193711,18.6851959,248.43,248.42,0.03]
[1758229193912,51.32281287,248.43,248.42,0.03]
[1758229194298,49.6451959,248.43,248.42,0.03]
[1758229194606,51.32281287,248.43,248.42,0.03]
[1758229195816,52.27106234,248.43,248.42,0.03]
[1758229196294,49.6451959,248.43,248.42,0.03]
[1758229196496,52.27106234,248.43,248.42,0.03]
[1758229198513,52.27106234,248.43,248.38,0.03]
[1758229198514,62.33425921,248.43,248.38,0.03]
[1758229198691,16.22146045,248.4,248.38,0.03]
[1758229198897,47.18146045,248.4,248.38,0.03]
[1758229199203,47.83146045,248.4,248.38,0.03]
[1758229200421,51.85722534,248.4,248.38,0.03]
[1758229201502,52.14154848,248.4,248.38,0.03]
[1758229202298,52.14154848,248.4,248.38,1e-08]
[1758229202299,13.87991715,248.39,248.38,1e-08]
[1758229202498,16.50578359,248.39,248.36,1e-08]
[1758229202710,16.22146045,248.37,248.36,1e-08]
[1758229203094,16.87146045,248.37,248.36,1e-08]
[1758229203824,20.8977116,248.37,248.36,1e-08]
[1758229204412,21.18203474,248.37,248.36,1e-08]
[1758229206314,52.14203474,248.37,248.36,1e-08]
[1758229208201,20.53203474,248.37,248.36,1e-08]
[1758229208734,52.14203474,248.37,248.36,1e-08]
[1758229209432,0.27000001,248.4,248.36,0.69000001]
[1758229209602,4.29580058,248.4,248.36,0.69000001]
[1758229219022,0.27000001,248.4,248.36,4.71636828]
[1758229219228,0.27000001,248.4,248.37,0.69]
[1758229221042,0.27000001,248.4,248.37,4.71615397]
[1758229221244,0.27000001,248.4,248.38,0.69]
[1758229223047,0.27000001,248.4,248.38,4.71606727]
[1758229223350,0.27000001,248.4,248.39,0.69]
[1758229224345,0.33000001,248.4,248.39,0.69]
[1758229225538,0.06,248.4,248.39,0.69]
[1758229226047,0.06,248.4,248.36,26.00000001]
[1758229226247,0.06,248.4,248.37,0.7]
[1758229228140,0.06,248.4,248.38,0.7]
[1758229229421,0.06,248.4,248.36,61.68640261]
[1758229229621,0.06,248.4,248.37,0.7]
[1758229230021,0.06,248.4,248.38,0.7]
[1758229232245,0.06,248.4,248.36,60.98640261]
[1758229232246,0.06,248.4,248.37,30.96]
[1758229232451,0.06,248.4,248.39,0.7]
[1758229233343,0.06,248.4,248.38,0.7]
[1758229243644,0.06,248.4,248.37,30.96]
[1758229244060,0.06,248.4,248.38,0.7]
[1758229245763,0.06,248.4,248.39,26.0]
[1758229246349,0.06,248.4,248.39,26.7]
[1758229249861,0.06,248.4,248.39,57.66]
[1758229250066,0.06,248.4,248.39,61.68592696]
[1758229253683,0.06,248.43,248.39,0.7]
[1758229253880,0.06,248.43,248.42,26.0]
[1758229254162,0.06,248.43,248.42,56.94]
[1758229255170,0.06,248.43,248.42,58.55072744]
[1758229258970,0.78,248.43,248.42,27.61072744]
[1758229259168,0.78,248.43,248.42,58.55072744]
[1758229259371,0.06,248.43,248.42,58.55072744]
[1758229259766,0.78,248.43,248.42,58.55072744]
[1758229260360,0.06,248.43,248.42,58.55072744]
[1758229262065,0.06,248.43,248.42,27.61072744]
[1758229262266,0.06,248.43,248.42,56.94]
[1758229262881,4.80527875,248.43,248.36,1e-08]
[1758229263063,4.80527875,248.43,248.37,30.94]
[1758229263255,0.72,248.42,248.37,30.94]
[1758229263579,4.08527875,248.43,248.37,30.94]
[1758229263580,0.72,248.41,248.37,30.94]
[1758229263775,0.72,248.4,248.37,30.94]
[1758229263977,4.74582036,248.4,248.37,30.94]
[1758229264362,0.06,248.43,248.38,0.68]
[1758229264560,0.06,248.43,248.39,56.94]
[1758229264767,0.06,248.43,248.4,0.68]
[1758229264969,0.06,248.43,248.41,30.94]
[1758229265169,0.06,248.43,248.41,32.55072745]
[1758229265480,0.06,248.43,248.42,0.68]
[1758229265975,0.06,248.43,248.42,2.29072745]
[1758229267384,0.06,248.43,248.42,6.31616823]
[1758229268358,0.06,248.43,248.42,5.63616823]
[1758229268558,0.06,248.43,248.42,32.55072745]
[1758229269086,0.78,248.43,248.42,30.94]
[1758229269460,0.06,248.43,248.42,30.94]
[1758229270475,0.78,248.43,248.42,30.94]
[1758229270870,0.78,248.43,248.41,26.0]
[1758229271066,0.06,248.43,248.42,30.94]
[1758229271766,4.80527875,248.43,248.4,4.08508392]
[1758229271974,4.80527875,248.43,248.41,30.94]
[1758229271975,0.72,248.42,248.41,30.94]
[1758229272884,0.06,248.43,248.41,30.94]
[1758229273073,0.78,248.43,248.41,30.94]
[1758229274792,4.80528014,248.43,248.41,30.94]
[1758229275096,4.08528014,248.43,248.41,30.94]
[1758229275401,0.72,248.42,248.41,30.94]
[1758229276203,4.08528014,248.43,248.41,30.94]
[1758229276499,0.78,248.43,248.41,30.94]
[1758229276791,0.78,248.43,248.42,30.94]
[1758229277591,0.06,248.43,248.42,30.94]
[1758229277805,0.06,248.43,248.42,31.62]
[1758229278472,0.06,248.43,248.42,33.23072745]
[1758229279589,0.06,248.43,248.42,37.25616823]
[1758229283886,0.06,248.43,248.42,116.95616823]
[1758229285084,0.06,248.43,248.42,86.01616823]
[1758229285290,0.06,248.43,248.42,116.95616823]
[1758229292285,0.06,248.43,248.42,86.01616823]
[1758229292585,0.06,248.43,248.42,116.95616823]
[1758229305712,0.06,248.43,248.42,116.25616823]
[1758229316343,0.73,248.43,248.42,81.31072745]
[1758229316545,0.73,248.43,248.42,112.23072745]
[1758229317340,0.73,248.43,248.42,81.31072745]
[1758229317535,0.73,248.43,248.42,112.23072745]
[1758229318052,0.73,248.43,248.42,81.31072745]
[1758229318254,0.73,248.43,248.42,112.23072745]
[1758229320861,0.73,248.43,248.42,81.31072745]
[1758229321053,0.73,248.43,248.42,112.23072745]
[1758229321835,0.73,248.43,248.42,81.31072745]
[1758229322037,0.73,248.43,248.42,112.23072745]
[1758229324352,0.73,248.43,248.42,116.25616823]
[1758229324656,0.73,248.43,248.42,116.91616823]
[1758229324657,0.06,248.43,248.42,116.91616823]
[1758229325242,0.06,248.43,248.42,116.25616823]
[1758229326160,0.06,248.43,248.42,112.23072745]
[1758229326348,0.73,248.43,248.42,112.23072745]
[1758229327560,0.73,248.43,248.42,1.61072745]
[1758229327866,0.73,248.43,248.4,0.03]
[1758229327867,4.75527875,248.43,248.4,0.03]
[1758229328062,16.50275965,248.42,248.4,0.03]
[1758229328268,16.50275965,248.42,248.38,1.58105181]
[1758229328269,0.28432314,248.4,248.38,1.58105181]
[1758229328437,0.28432314,248.4,248.36,1e-08]
[1758229328438,13.87991715,248.38,248.36,1e-08]
[1758229328649,16.50275965,248.37,248.36,1e-08]
[1758229328846,17.17275965,248.37,248.36,1e-08]
[1758229329547,21.1990108,248.37,248.36,1e-08]
[1758229333765,18.5761683,248.37,248.36,1e-08]
[1758229333967,21.1990108,248.37,248.36,1e-08]
[1758229334551,17.17275965,248.37,248.36,1e-08]
[1758229334752,14.54991715,248.37,248.36,1e-08]
[1758229335279,17.17275965,248.37,248.36,1e-08]
[1758229338654,18.78459049,248.37,248.36,1e-08]
[1758229338873,16.16174799,248.37,248.36,1e-08]
[1758229340049,47.08174799,248.37,248.36,1e-08]
[1758229343483,47.14174799,248.37,248.36,1e-08]
[1758229343664,51.16799914,248.37,248.36,1e-08]
[1758229343865,49.5561683,248.37,248.36,1e-08]
[1758229344271,17.9661683,248.37,248.36,1e-08]
[1758229344766,17.82400673,248.37,248.36,1e-08]
[1758229344970,18.49400673,248.37,248.36,1e-08]
[1758229345284,18.6361683,248.37,248.36,1e-08]
[1758229346374,17.9661683,248.37,248.36,1e-08]
[1758229346589,4.08625115,248.37,248.36,0.67000001]
[1758229347180,0.06,248.37,248.36,0.67000001]
[1758229347358,0.06,248.37,248.36,2.31144125]
[1758229351383,4.08625115,248.37,248.36,2.31144125]
[1758229351566,0.06,248.37,248.36,2.31144125]
[1758229354282,4.08625115,248.37,248.36,2.31144125]
[1758229354580,4.08625115,248.37,248.36,1e-08]
[1758229359078,4.08625115,248.37,248.36,0.67000001]
[1758229360201,0.06,248.37,248.36,0.67000001]
[1758229360576,0.06,248.37,248.36,10.79459424]
[1758229360995,0.06,248.37,248.36,14.82100751]
[1758229361570,0.06,248.37,248.36,45.74100751]
[1758229366699,0.06,248.37,248.36,125.44100751]
[1758229375196,0.06,248.37,248.36,115.31641328]
[1758229380898,0.06,248.37,248.36,110.62000001]
[1758229382206,0.06,248.37,248.36,111.31000001]
[1758229382584,0.06,248.37,248.36,110.62000001]
[1758229384087,0.06,248.37,248.36,79.70000001]
[1758229384308,0.06,248.37,248.36,110.60000001]
[1758229384611,0.06,248.37,248.36,30.90000001]
[1758229385200,0.75,248.37,248.36,30.90000001]
[1758229385983,0.06,248.37,248.36,30.90000001]
[1758229390922,0.06,248.37,248.36,1e-08]
[1758229391093,4.77625115,248.37,248.36,1e-08]
[1758229394414,4.91841272,248.37,248.36,1e-08]
[1758229394623,5.06057429,248.37,248.36,1e-08]
[1758229396918,18.6561683,248.37,248.36,1e-08]
[1758229398909,4.77625115,248.37,248.36,1e-08]
[1758229399200,4.08625115,248.37,248.36,1e-08]
[1758229401412,4.77625115,248.37,248.36,1e-08]
[1758229409227,4.08625115,248.37,248.36,1e-08]
[1758229416327,4.78625115,248.37,248.36,1e-08]
[1758229418722,4.08625115,248.37,248.36,1e-08]
[1758229419732,4.78625115,248.37,248.36,1e-08]
[1758229420115,5.07057429,248.37,248.36,1e-08]
[1758229422920,18.6661683,248.37,248.36,1e-08]
[1758229435528,20.27806409,248.37,248.36,1e-08]
[1758229438840,51.14806409,248.37,248.36,1e-08]
[1758229439026,20.26806409,248.37,248.36,1e-08]
[1758229439231,51.14806409,248.37,248.36,1e-08]
[1758229440449,20.26806409,248.37,248.36,1e-08]
[1758229440650,51.14806409,248.37,248.36,1e-08]
[1758229441655,20.26806409,248.37,248.36,1e-08]
[1758229441840,51.14806409,248.37,248.36,1e-08]
[1758229445534,54.41476649,248.37,248.36,1e-08]
[1758229447235,51.14806409,248.37,248.36,1e-08]
[1758229452581,13.87991715,248.36,248.35,0.03]
[1758229453067,14.56991715,248.36,248.35,0.03]
[1758229453565,18.59633042,248.36,248.35,0.03]
[1758229453860,20.20835614,248.36,248.35,0.03]
[1758229456344,30.27438931,248.36,248.33,1e-08]
[1758229456669,0.28432314,248.34,248.33,1e-08]
[1758229459366,17.90665468,248.34,248.33,1e-08]
[1758229460083,19.51874536,248.34,248.33,1e-08]
[1758229460462,17.90665468,248.34,248.33,1e-08]
[1758229462175,19.51874536,248.34,248.33,1e-08]
[1758229467480,17.90665468,248.34,248.33,1e-08]
[1758229469975,48.78665468,248.34,248.33,0.65000001]
[1758229476190,17.90665468,248.34,248.33,0.65000001]
[1758229476388,48.76665468,248.34,248.33,0.65000001]
[1758229476567,48.76665468,248.34,248.33,1e-08]
[1758229477464,48.76665468,248.34,248.33,0.65000001]
[1758229477884,48.76665468,248.34,248.33,1e-08]
[1758229479077,17.90665468,248.34,248.33,0.65000001]
[1758229479286,48.76665468,248.34,248.33,0.65000001]
[1758229480186,48.76665468,248.34,248.33,1e-08]
[1758229482477,48.76665468,248.34,248.33,0.65000001]
[1758229482872,48.76665468,248.34,248.33,1e-08]
[1758229486291,48.76665468,248.34,248.33,0.65000001]
[1758229486979,48.76665468,248.34,248.33,1e-08]
[1758229492573,49.48665468,248.34,248.33,1e-08]
[1758229493713,49.48665468,248.34,248.31,0.13]
[1758229493714,59.55349852,248.34,248.31,0.13]
[1758229495104,59.55349852,248.34,248.31,0.79]
[1758229495602,4.02706185,248.32,248.31,0.79]
[1758229495798,34.88706185,248.32,248.31,0.79]
[1758229496383,36.49908756,248.32,248.31,0.79]
[1758229497815,36.49908756,248.32,248.31,0.13]
[1758229500116,50.37900471,248.32,248.31,0.13]
[1758229500419,50.37900471,248.32,248.31,0.79]
[1758229500702,35.17138499,248.32,248.31,0.79]
[1758229502505,51.11900471,248.32,248.31,0.13]
[1758229502714,13.87991715,248.31,248.3,0.03]
[1758229502915,13.87991715,248.31,248.27,0.1]
[1758229503205,13.87991715,248.29,248.27,0.1]
[1758229503387,44.71991715,248.28,248.27,0.1]
[1758229503782,45.42991715,248.28,248.27,0.1]
[1758229503986,51.0699784,248.28,248.27,0.1]
[1758229506298,51.0699784,248.28,248.27,1e-08]
[1758229507107,51.0699784,248.28,248.21,1e-08]
[1758229507108,39.59559401,248.24,248.21,1e-08]
[1758229507306,31.12432314,248.23,248.21,1e-08]
[1758229507515,31.83432314,248.23,248.21,1e-08]
[1758229507692,0.71,248.22,248.21,1e-08]
[1758229507891,5.26485177,248.22,248.21,1e-08]
[1758229508507,9.293536,248.22,248.21,1e-08]
[1758229510209,22.88913001,248.22,248.21,1e-08]
[1758229512112,13.87991715,248.21,248.11,0.76]
[1758229512311,13.87991715,248.19,248.11,0.76]
[1758229512642,13.87991715,248.17,248.11,0.76]
[1758229512819,30.86,248.16,248.11,0.76]
[1758229512996,35.14190212,248.16,248.11,0.76]
[1758229513308,25.97937469,248.15,248.12,0.66]
[1758229513517,30.86,248.14,248.12,0.66]
[1758229514017,16.12960302,248.13,248.12,0.66]
[1758229514212,0.28432314,248.12,248.11,0.1]
[1758229514418,31.14432314,248.12,248.11,0.1]
[1758229514723,31.14432314,248.12,248.11,0.13]
[1758229514894,34.88998591,248.14,248.11,0.79]
[1758229515305,34.88998591,248.14,248.11,12.8875059]
[1758229515600,34.88998591,248.14,248.12,0.66]
[1758229515800,4.02998591,248.14,248.12,0.66]
[1758229516000,4.02998591,248.14,248.13,0.66]
[1758229520027,4.02998591,248.14,248.12,12.0975059]
[1758229520411,4.02998591,248.14,248.12,12.7575059]